[Event "Fall IM Norm Invitational 2020"]
[Site "Charlotte"]
[Date "2020.10.01"]
[Round "1.1"]
[White "Stearman, Josiah"]
[Black "Legky, Nikolay A"]
[Result "1-0"]
[ECO "A45"]
[WhiteElo "2354"]
[BlackElo "2402"]
[Annotator "ChessBase"]
[PlyCount "97"]
[EventDate "2020.09.30"]
[EventType "tourn"]
[EventCountry "USA"]
[SourceTitle "playchess.com"]
[Source "ChessBase"]
[SourceQuality "1"]
[TimeControl "5400+30"]

1. d4 {[%emt 1:30:30]} Nf6 {[%emt 1:30:30]} 2. Bf4 {[%emt 0:00:30]} c5 {[%emt 0:00:30]} 3. e3 {[%emt 0:00:30]} Qb6 {[%emt 0:00:30]} 4. Nc3 {[%emt 0:00:30]} Qxb2 {[%emt 0:00:30]} 5. Nb5 {[%emt 0:00:30]} Na6 {[%emt 0:00:30]} 6. a3 {[%emt 0:00:30]} Nd5 {[%emt 0:00:30]} 7. Rb1 {[%emt 0:00:30]} Qa2 {[%emt 0:00:30]} 8. Rb3 {[%emt 0:00:30]} cxd4 {[%emt 0:00:30]} 9. Be5 {[%emt 0:00:30]} d6 {[%emt 0:00:30]} 10. Bxd4 {[%emt 0:00:30]} e5 {[%emt 0:00:30]} 11. Bc4 {[%emt 0:00:30]} Bf5 {[%emt 0:00:30]} 12. Bb2 {[%emt 0:00:30]} Rc8 {[%emt 0:00:30]} 13. Bxd5 {[%emt 0:00:30]} Bxc2 {[%emt 0:00:30]} 14. Rc3 {[%emt 0:00:30]} Rxc3 {[%emt 0:00:30]} 15. Bxa2 {[%emt 0:00:30]} Bxd1 {[%emt 0:00:30]} 16. Nxc3 {[%emt 0:00:30]} Bg4 {[%emt 0:00:30]} 17. f3 {[%emt 0:00:30]} Be6 {[%emt 0:00:30]} 18. Bd5 {[%emt 0:00:30]} Nc5 {[%emt 0:00:30]} 19. Kd2 {[%emt 0:00:30]} Kd7 {[%emt 0:00:30]} 20. Nge2 {[%emt 0:00:30]} Be7 {[%emt 0:00:30]} 21. Nc1 {[%emt 0:00:30]} Rc8 {[%emt 0:00:30]} 22. Rd1 {[%emt 0:00:30]} b5 {[%emt 0:00:30]} 23. Bxe6+ {[%emt 0:00:30]} fxe6 {[%emt 0:00:30]} 24. Nd3 {[%emt 0:00:30]} Nxd3 {[%emt 0:00:30]} 25. Kxd3 {[%emt 0:00:30]} d5 {[%emt 0:00:30]} 26. Nxb5 {[%emt 0:00:30]} Rb8 {[%emt 0:00:30]} 27. a4 {[%emt 0:00:30]} Bf6 {[%emt 0:00:30]} 28. Kc2 {[%emt 0:00:30]} a6 {[%emt 0:00:30]} 29. Nc3 {[%emt 0:00:30]} Rb4 {[%emt 0:00:30]} 30. Ba3 {[%emt 0:00:30]} Rc4 {[%emt 0:00:30]} 31. Kb3 {[%emt 0:00:30]} Kc6 {[%emt 0:00:30]} 32. e4 {[%emt 0:00:30]} Rd4 {[%emt 0:00:30]} 33. Rc1 {[%emt 0:00:30]} Kd7 {[%emt 0:00:30]} 34. Rd1 {[%emt 0:00:30]} Kc6 {[%emt 0:00:30]} 35. exd5+ {[%emt 0:00:30]} exd5 {[%emt 0:00:30]} 36. Rxd4 {[%emt 0:00:30]} exd4 {[%emt 0:00:30]} 37. Nd1 {[%emt 0:00:30]} d3 {[%emt 0:00:30]} 38. Bb2 {[%emt 0:00:30]} d4 {[%emt 0:00:30]} 39. Kc4 {[%emt 0:00:30]} Kb6 {[%emt 0:00:30]} 40. Bxd4+ {[%emt 0:00:30]} Bxd4 {[%emt 0:00:30]} 41. Kxd4 {[%emt 0:00:30]} Ka5 {[%emt 0:00:30]} 42. Kxd3 {[%emt 0:00:30]} Kxa4 43. Kc4 {[%emt 0:00:30]} Ka3 {[%emt 0:01:00]} 44. f4 {[%emt 0:00:30]} h5 {[%emt 0:00:30]} 45. f5 {[%emt 0:00:30]} Ka2 {[%emt 0:00:30]} 46. Ne3 {[%emt 0:00:30]} Kb2 {[%emt 0:00:30]} 47. Nd5 {[%emt 0:00:30]} Kc2 {[%emt 0:00:30]} 48. Nf4 {[%emt 0:00:30]} h4 {[%emt 0:00:30]} 49. Nh5 {[%emt 0:00:30]} 1-0

[Event "Fall IM Norm Invitational 2020"]
[Site "Charlotte"]
[Date "2020.10.01"]
[Round "1.2"]
[White "Martin Del Campo C., Roberto"]
[Black "Matros, Alexander"]
[Result "1-0"]
[ECO "C73"]
[WhiteElo "2311"]
[BlackElo "2417"]
[Annotator "ChessBase"]
[PlyCount "75"]
[EventDate "2020.09.30"]
[EventType "tourn"]
[EventCountry "USA"]
[SourceTitle "playchess.com"]
[Source "ChessBase"]
[SourceQuality "1"]
[TimeControl "5400+30"]

1. e4 {[%emt 1:30:30]} e5 {[%emt 1:30:30]} 2. Nf3 {[%emt 0:00:30]} Nc6 {[%emt 0:00:30]} 3. Bb5 {[%emt 0:00:30]} a6 {[%emt 0:00:30]} 4. Ba4 {[%emt 0:00:30]} d6 {[%emt 0:00:30]} 5. Bxc6+ {[%emt 0:00:30]} bxc6 {[%emt 0:00:30]} 6. d4 {[%emt 0:00:30]} f6 {[%emt 0:00:30]} 7. Nc3 {[%emt 0:00:30]} g6 {[%emt 0:00:30]} 8. Qe2 {[%emt 0:00:30]} Bg7 {[%emt 0:00:30]} 9. Be3 {[%emt 0:00:30]} Nh6 {[%emt 0:00:30]} 10. O-O-O {[%emt 0:00:30]} Nf7 {[%emt 0:00:30]} 11. Qc4 {[%emt 0:00:30]} Bd7 {[%emt 0:00:30]} 12. h4 {[%emt 0:00:30]} h5 {[%emt 0:00:30]} 13. dxe5 {[%emt 0:00:30]} fxe5 {[%emt 0:00:30]} 14. Ng5 {[%emt 0:00:30]} Qe7 {[%emt 0:00:30]} 15. Kb1 {[%emt 0:00:30]} Nxg5 {[%emt 0:00:30]} 16. hxg5 {[%emt 0:00:30]} Qe6 {[%emt 0:00:30]} 17. Qe2 {[%emt 0:00:30]} a5 {[%emt 0:00:30]} 18. f3 {[%emt 0:00:30]} Bc8 {[%emt 0:00:30]} 19. Rh4 {[%emt 0:00:30]} Ba6 {[%emt 0:00:30]} 20. Qd2 {[%emt 0:00:30]} Rb8 {[%emt 0:00:30]} 21. Na4 {[%emt 0:00:30]} O-O {[%emt 0:00:30]} 22. Qxa5 {[%emt 0:00:30]} Qc8 {[%emt 0:00:30]} 23. Qc3 {[%emt 0:00:30]} Be2 {[%emt 0:00:30]} 24. Re1 {[%emt 0:00:30]} Qa6 {[%emt 0:00:30]} 25. b3 {[%emt 0:00:30]} Bc4 {[%emt 0:00:30]} 26. Nb2 {[%emt 0:00:30]} Be6 {[%emt 0:00:30]} 27. Nd3 {[%emt 0:00:30]} c5 {[%emt 0:00:30]} 28. Bc1 {[%emt 0:00:30]} Ra8 {[%emt 0:00:30]} 29. a3 {[%emt 0:00:30]} Rfb8 {[%emt 0:00:30]} 30. Bb2 {[%emt 0:00:30]} Ra7 {[%emt 0:00:30]} 31. g4 {[%emt 0:00:30]} hxg4 {[%emt 0:00:30]} 32. fxg4 {[%emt 0:00:30]} c6 {[%emt 0:00:30]} 33. Reh1 Rf7 {[%emt 0:00:30]} 34. Nxc5 {[%emt 0:01:00]} Qc8 {[%emt 0:00:30]} 35. Qh3 {[%emt 0:00:30]} Rf8 {[%emt 0:00:30]} 36. Rh7 {[%emt 0:00:30]} dxc5 {[%emt 0:00:30]} 37. Rxg7+ {[%emt 0:00:30]} Kxg7 {[%emt 0:00:30]} 38. Qh7# 1-0

[Event "Fall IM Norm Invitational 2020"]
[Site "Charlotte"]
[Date "2020.10.01"]
[Round "1.3"]
[White "Krykun, Yuriy"]
[Black "Velikanov, Alexander"]
[Result "1/2-1/2"]
[ECO "A34"]
[WhiteElo "2371"]
[BlackElo "2274"]
[Annotator "ChessBase"]
[PlyCount "94"]
[EventDate "2020.09.30"]
[EventType "tourn"]
[EventCountry "USA"]
[SourceTitle "playchess.com"]
[Source "ChessBase"]
[SourceQuality "1"]
[TimeControl "5400+30"]

1. e4 {[%emt 1:30:30]} c5 {[%emt 1:30:30]} 2. Nf3 {[%emt 0:00:30]} e6 {[%emt 0:00:30]} 3. c4 {[%emt 0:00:30]} Nc6 {[%emt 0:00:30]} 4. Nc3 {[%emt 0:00:30]} Nf6 {[%emt 0:00:30]} 5. Be2 {[%emt 0:00:30]} d5 {[%emt 0:00:30]} 6. exd5 {[%emt 0:00:30]} exd5 {[%emt 0:00:30]} 7. d4 {[%emt 0:00:30]} Be7 {[%emt 0:00:30]} 8. O-O {[%emt 0:00:30]} O-O {[%emt 0:00:30]} 9. Be3 {[%emt 0:00:30]} dxc4 {[%emt 0:00:30]} 10. d5 {[%emt 0:00:30]} Nb4 {[%emt 0:00:30]} 11. Bxc4 {[%emt 0:00:30]} b5 {[%emt 0:00:30]} 12. Bxb5 {[%emt 0:00:30]} Nfxd5 {[%emt 0:00:30]} 13. Bd2 {[%emt 0:00:30]} Rb8 {[%emt 0:00:30]} 14. Bc4 {[%emt 0:00:30]} Bf5 {[%emt 0:00:30]} 15. Nxd5 {[%emt 0:00:30]} Nxd5 {[%emt 0:00:30]} 16. Ne5 {[%emt 0:00:30]} Qd6 {[%emt 0:00:30]} 17. Bxd5 {[%emt 0:00:30]} Qxd5 {[%emt 0:00:30]} 18. Bc3 {[%emt 0:00:30]} Qxd1 {[%emt 0:00:30]} 19. Rfxd1 Bf6 {[%emt 0:00:30]} 20. Nd7 {[%emt 0:01:00]} Bxd7 {[%emt 0:00:30]} 21. Rxd7 {[%emt 0:00:30]} Bxc3 {[%emt 0:00:30]} 22. bxc3 {[%emt 0:00:30]} Rb2 {[%emt 0:00:30]} 23. Rxa7 {[%emt 0:00:30]} Rd8 {[%emt 0:00:30]} 24. h4 {[%emt 0:00:30]} g6 {[%emt 0:00:30]} 25. h5 {[%emt 0:00:30]} gxh5 {[%emt 0:00:30]} 26. Rc7 {[%emt 0:00:30]} Rdd2 {[%emt 0:00:30]} 27. Rf1 {[%emt 0:00:30]} Rxa2 {[%emt 0:00:30]} 28. Rxc5 {[%emt 0:00:30]} Rac2 {[%emt 0:00:30]} 29. Rg5+ {[%emt 0:00:30]} Kf8 {[%emt 0:00:30]} 30. Rxh5 {[%emt 0:00:30]} Kg7 {[%emt 0:00:30]} 31. Rg5+ {[%emt 0:00:30]} Kf6 {[%emt 0:00:30]} 32. Rg3 {[%emt 0:00:30]} Rd5 {[%emt 0:00:30]} 33. Rb1 {[%emt 0:00:30]} Rf5 {[%emt 0:00:30]} 34. Rb6+ {[%emt 0:00:30]} Ke7 {[%emt 0:00:30]} 35. f3 {[%emt 0:00:30]} h5 {[%emt 0:00:30]} 36. Rc6 {[%emt 0:00:30]} h4 {[%emt 0:00:30]} 37. Rh3 {[%emt 0:00:30]} Rg5 {[%emt 0:00:30]} 38. Rh2 {[%emt 0:00:30]} Rg3 {[%emt 0:00:30]} 39. Rh6 {[%emt 0:00:30]} Rc1+ {[%emt 0:00:30]} 40. Kf2 {[%emt 0:00:30]} Rc2+ {[%emt 0:00:30]} 41. Kg1 {[%emt 0:00:30]} Rc1+ {[%emt 0:00:30]} 42. Kf2 {[%emt 0:00:30]} Rc2+ {[%emt 0:00:30]} 43. Kf1 {[%emt 0:00:30]} Rxf3+ {[%emt 0:00:30]} 44. gxf3 {[%emt 0:00:30]} Rxh2 {[%emt 0:00:30]} 45. c4 {[%emt 0:00:30]} h3 {[%emt 0:00:30]} 46. Kg1 {[%emt 0:00:30]} Rc2 {[%emt 0:00:30]} 47. Rxh3 {[%emt 0:00:30]} Rxc4 {[%emt 0:00:30]} 1/2-1/2

[Event "Fall IM Norm Invitational 2020"]
[Site "Charlotte"]
[Date "2020.10.01"]
[Round "1.4"]
[White "Francisco, Richard"]
[Black "Li, Eric"]
[Result "1/2-1/2"]
[ECO "A20"]
[WhiteElo "2303"]
[BlackElo "2334"]
[Annotator "ChessBase"]
[PlyCount "152"]
[EventDate "2020.09.30"]
[EventType "tourn"]
[EventCountry "USA"]
[SourceTitle "playchess.com"]
[Source "ChessBase"]
[SourceQuality "1"]
[TimeControl "5400+30"]

1. c4 {[%emt 1:30:30]} e5 {[%emt 1:30:30]} 2. g3 {[%emt 0:00:30]} Nf6 {[%emt 0:00:30]} 3. Bg2 {[%emt 0:00:30]} c6 {[%emt 0:00:30]} 4. d4 {[%emt 0:00:30]} e4 {[%emt 0:00:30]} 5. Nc3 {[%emt 0:00:30]} d5 {[%emt 0:00:30]} 6. Bg5 {[%emt 0:00:30]} Bb4 {[%emt 0:00:30]} 7. Rc1 {[%emt 0:00:30]} O-O {[%emt 0:00:30]} 8. cxd5 {[%emt 0:00:30]} cxd5 {[%emt 0:00:30]} 9. Nh3 {[%emt 0:00:30]} h6 {[%emt 0:00:30]} 10. Bxf6 {[%emt 0:00:30]} Qxf6 {[%emt 0:00:30]} 11. Nf4 {[%emt 0:00:30]} Be6 {[%emt 0:00:30]} 12. O-O {[%emt 0:00:30]} Bxc3 {[%emt 0:00:30]} 13. Rxc3 {[%emt 0:00:30]} Nc6 {[%emt 0:00:30]} 14. e3 {[%emt 0:00:30]} Rad8 {[%emt 0:00:30]} 15. f3 {[%emt 0:00:30]} exf3 {[%emt 0:00:30]} 16. Bxf3 {[%emt 0:00:30]} Qe7 {[%emt 0:00:30]} 17. Qa4 {[%emt 0:00:30]} g5 {[%emt 0:00:30]} 18. Nd3 {[%emt 0:00:30]} Bd7 {[%emt 0:00:30]} 19. Nc5 {[%emt 0:00:30]} Be8 {[%emt 0:00:30]} 20. Qc2 {[%emt 0:00:30]} Rd6 {[%emt 0:00:30]} 21. Qg2 {[%emt 0:00:30]} b6 {[%emt 0:00:30]} 22. Nb3 {[%emt 0:00:30]} Qd8 {[%emt 0:00:30]} 23. Rfc1 {[%emt 0:00:30]} Kg7 {[%emt 0:00:30]} 24. a3 {[%emt 0:00:30]} Rh8 {[%emt 0:00:30]} 25. Nd2 {[%emt 0:00:30]} a5 {[%emt 0:00:30]} 26. Be2 {[%emt 0:00:30]} Bd7 {[%emt 0:00:30]} 27. Nf3 {[%emt 0:00:30]} Re8 {[%emt 0:00:30]} 28. Bb5 {[%emt 0:00:30]} Ne7 {[%emt 0:00:30]} 29. Bxd7 {[%emt 0:00:30]} Qxd7 {[%emt 0:00:30]} 30. Rf1 {[%emt 0:00:30]} Ng6 {[%emt 0:00:30]} 31. Qc2 {[%emt 0:00:30]} Qe6 {[%emt 0:00:30]} 32. Ne1 {[%emt 0:00:30]} Re7 {[%emt 0:00:30]} 33. Ng2 {[%emt 0:00:30]} Nf8 {[%emt 0:00:30]} 34. Qf5 {[%emt 0:00:30]} Qxf5 {[%emt 0:00:30]} 35. Rxf5 Kg6 {[%emt 0:00:30]} 36. Rf2 {[%emt 0:01:00]} Nh7 {[%emt 0:00:30]} 37. Rfc2 {[%emt 0:00:30]} Nf6 {[%emt 0:00:30]} 38. Rc6 {[%emt 0:00:30]} Rxc6 {[%emt 0:00:30]} 39. Rxc6 {[%emt 0:00:30]} Re6 {[%emt 0:00:30]} 40. Rc7 {[%emt 0:00:30]} Ne8 {[%emt 0:00:30]} 41. Rc2 {[%emt 0:00:30]} Nd6 {[%emt 0:00:30]} 42. b3 {[%emt 0:00:30]} Rf6 {[%emt 0:00:30]} 43. Ne1 {[%emt 0:00:30]} Re6 {[%emt 0:00:30]} 44. Kf2 {[%emt 0:00:30]} Nf5 {[%emt 0:00:30]} 45. Ng2 {[%emt 0:00:30]} Rf6 {[%emt 0:00:30]} 46. Ke1 {[%emt 0:00:30]} Kh5 {[%emt 0:00:30]} 47. Rf2 {[%emt 0:00:30]} Kg4 {[%emt 0:00:30]} 48. Ke2 {[%emt 0:00:30]} Re6 {[%emt 0:00:30]} 49. Kd3 {[%emt 0:00:30]} Nd6 {[%emt 0:00:30]} 50. Ne1 {[%emt 0:00:30]} f6 {[%emt 0:00:30]} 51. Rc2 {[%emt 0:00:30]} Nf5 {[%emt 0:00:30]} 52. Re2 {[%emt 0:00:30]} h5 {[%emt 0:00:30]} 53. e4 {[%emt 0:00:30]} Ne7 {[%emt 0:00:30]} 54. e5 {[%emt 0:00:30]} fxe5 {[%emt 0:00:30]} 55. Rxe5 {[%emt 0:00:30]} Rxe5 {[%emt 0:00:30]} 56. dxe5 {[%emt 0:00:30]} Nc6 {[%emt 0:00:30]} 57. e6 {[%emt 0:00:30]} Kf5 {[%emt 0:00:30]} 58. Nf3 {[%emt 0:00:30]} Kf6 {[%emt 0:00:30]} 59. h3 {[%emt 0:00:30]} g4 {[%emt 0:00:30]} 60. hxg4 {[%emt 0:00:30]} hxg4 {[%emt 0:00:30]} 61. Nh2 {[%emt 0:00:30]} Ne5+ {[%emt 0:00:30]} 62. Ke3 {[%emt 0:00:30]} Kxe6 {[%emt 0:00:30]} 63. Kf4 {[%emt 0:00:30]} Nd3+ {[%emt 0:00:30]} 64. Kxg4 {[%emt 0:00:30]} Nc1 {[%emt 0:00:30]} 65. b4 {[%emt 0:00:30]} axb4 {[%emt 0:00:30]} 66. axb4 {[%emt 0:00:30]} Na2 {[%emt 0:00:30]} 67. b5 {[%emt 0:00:30]} Nc3 {[%emt 0:00:30]} 68. Kf4 {[%emt 0:00:30]} Nxb5 {[%emt 0:00:30]} 69. Nf3 {[%emt 0:00:30]} Nc7 {[%emt 0:00:30]} 70. g4 {[%emt 0:00:30]} Kd6 {[%emt 0:00:30]} 71. g5 {[%emt 0:00:30]} Ne6+ {[%emt 0:00:30]} 72. Kf5 {[%emt 0:00:30]} b5 {[%emt 0:00:30]} 73. g6 {[%emt 0:00:30]} b4 {[%emt 0:00:30]} 74. Nd2 {[%emt 0:00:30]} Ke7 {[%emt 0:00:30]} 75. Ke5 {[%emt 0:00:30]} Nc7 {[%emt 0:00:30]} 76. Nb3 {[%emt 0:00:30]} Ne8 {[%emt 0:00:30]} 1/2-1/2

[Event "Fall IM Norm Invitational 2020"]
[Site "Charlotte"]
[Date "2020.10.01"]
[Round "1.5"]
[White "Adamson, Robby"]
[Black "Vivekananthan, Anish"]
[Result "1/2-1/2"]
[ECO "C42"]
[WhiteElo "2235"]
[BlackElo "2239"]
[Annotator "ChessBase"]
[PlyCount "123"]
[EventDate "2020.09.30"]
[EventType "tourn"]
[EventCountry "USA"]
[SourceTitle "playchess.com"]
[Source "ChessBase"]
[SourceQuality "1"]
[TimeControl "5400+30"]

1. e4 {[%emt 1:30:30]} e5 {[%emt 1:30:30]} 2. Nf3 {[%emt 0:00:30]} Nf6 {[%emt 0:00:30]} 3. Nxe5 {[%emt 0:00:30]} d6 {[%emt 0:00:30]} 4. Nc4 {[%emt 0:00:30]} Nxe4 {[%emt 0:00:30]} 5. Nc3 {[%emt 0:00:30]} Nxc3 {[%emt 0:00:30]} 6. bxc3 {[%emt 0:00:30]} Be7 {[%emt 0:00:30]} 7. d4 {[%emt 0:00:30]} Nd7 {[%emt 0:00:30]} 8. Bd3 {[%emt 0:00:30]} Nf6 {[%emt 0:00:30]} 9. O-O {[%emt 0:00:30]} O-O {[%emt 0:00:30]} 10. Qf3 {[%emt 0:00:30]} c6 {[%emt 0:00:30]} 11. Bd2 {[%emt 0:00:30]} Be6 {[%emt 0:00:30]} 12. Rfe1 {[%emt 0:00:30]} g6 {[%emt 0:00:30]} 13. a4 {[%emt 0:00:30]} Re8 {[%emt 0:00:30]} 14. h3 {[%emt 0:00:30]} Bd5 {[%emt 0:00:30]} 15. Qd1 {[%emt 0:00:30]} Qd7 {[%emt 0:00:30]} 16. Ne3 {[%emt 0:00:30]} Be6 {[%emt 0:00:30]} 17. Qf3 {[%emt 0:00:30]} d5 {[%emt 0:00:30]} 18. Nf1 {[%emt 0:00:30]} Nh5 {[%emt 0:00:30]} 19. g4 {[%emt 0:00:30]} Ng7 {[%emt 0:00:30]} 20. Ng3 {[%emt 0:00:30]} Bh4 {[%emt 0:00:30]} 21. Qf4 {[%emt 0:00:30]} Be7 {[%emt 0:00:30]} 22. Re2 {[%emt 0:00:30]} Qd8 {[%emt 0:00:30]} 23. Rae1 {[%emt 0:00:30]} Bd7 {[%emt 0:00:30]} 24. Nf1 {[%emt 0:00:30]} Ne6 {[%emt 0:00:30]} 25. Qh2 {[%emt 0:00:30]} c5 {[%emt 0:00:30]} 26. dxc5 {[%emt 0:00:30]} Bxa4 {[%emt 0:00:30]} 27. Be3 {[%emt 0:00:30]} Bxc5 {[%emt 0:00:30]} 28. Bxc5 {[%emt 0:00:30]} Nxc5 {[%emt 0:00:30]} 29. Rxe8+ {[%emt 0:00:30]} Bxe8 {[%emt 0:00:30]} 30. Qe5 {[%emt 0:00:30]} Bc6 {[%emt 0:00:30]} 31. Ne3 {[%emt 0:00:30]} Ne6 {[%emt 0:00:30]} 32. Rd1 {[%emt 0:00:30]} Qh4 {[%emt 0:00:30]} 33. Bf1 {[%emt 0:00:30]} Ng5 {[%emt 0:00:30]} 34. Qg3 {[%emt 0:00:30]} d4 {[%emt 0:00:30]} 35. cxd4 {[%emt 0:00:30]} Nf3+ {[%emt 0:00:30]} 36. Kh1 {[%emt 0:00:30]} Nxd4+ {[%emt 0:00:30]} 37. Bg2 {[%emt 0:00:30]} Qxg3 {[%emt 0:00:30]} 38. fxg3 Rd8 {[%emt 0:00:30]} 39. c3 {[%emt 0:01:00]} Bxg2+ {[%emt 0:00:30]} 40. Kxg2 {[%emt 0:00:30]} Nc6 {[%emt 0:00:30]} 41. Rxd8+ {[%emt 0:00:30]} Nxd8 42. Kf3 f6 {[%emt 0:01:00]} 43. Ke4 {[%emt 0:01:00]} Kf7 {[%emt 0:00:30]} 44. Kd5 {[%emt 0:00:30]} Ke7 {[%emt 0:00:30]} 45. Nc4 {[%emt 0:00:30]} Kd7 {[%emt 0:00:30]} 46. Nd6 {[%emt 0:00:30]} a6 {[%emt 0:00:30]} 47. Ne4 {[%emt 0:00:30]} Ke7 {[%emt 0:00:30]} 48. Nc5 {[%emt 0:00:30]} a5 {[%emt 0:00:30]} 49. c4 {[%emt 0:00:30]} h6 {[%emt 0:00:30]} 50. h4 {[%emt 0:00:30]} h5 {[%emt 0:00:30]} 51. gxh5 {[%emt 0:00:30]} gxh5 {[%emt 0:00:30]} 52. Na4 {[%emt 0:00:30]} Nf7 {[%emt 0:00:30]} 53. Kc5 {[%emt 0:00:30]} Nd6 {[%emt 0:00:30]} 54. Nc3 {[%emt 0:00:30]} b6+ {[%emt 0:00:30]} 55. Kd5 {[%emt 0:00:30]} Kd7 {[%emt 0:00:30]} 56. Na4 {[%emt 0:00:30]} Kc7 {[%emt 0:00:30]} 57. Nxb6 {[%emt 0:00:30]} Nf5 {[%emt 0:00:30]} 58. Na4 {[%emt 0:00:30]} Nxg3 {[%emt 0:00:30]} 59. Ke6 {[%emt 0:00:30]} Ne4 {[%emt 0:00:30]} 60. Nb2 {[%emt 0:00:30]} Kc6 {[%emt 0:00:30]} 61. Kf5 {[%emt 0:00:30]} Ng3+ {[%emt 0:00:30]} 62. Kxf6 {[%emt 0:00:30]} 1/2-1/2

[Event "Fall IM Norm Invitational 2020"]
[Site "Charlotte"]
[Date "2020.10.01"]
[Round "2.1"]
[White "Stearman, Josiah"]
[Black "Martin Del Campo C., Roberto"]
[Result "1/2-1/2"]
[ECO "A47"]
[WhiteElo "2354"]
[BlackElo "2311"]
[Annotator "ChessBase"]
[PlyCount "103"]
[EventDate "2020.09.30"]
[EventType "tourn"]
[EventCountry "USA"]
[SourceTitle "playchess.com"]
[Source "ChessBase"]
[SourceQuality "1"]
[TimeControl "5400+30"]

1. d4 {[%emt 1:30:30]} c5 {[%emt 1:30:30]} 2. c3 {[%emt 0:00:30]} e6 {[%emt 0:00:30]} 3. Nf3 {[%emt 0:00:30]} Nf6 {[%emt 0:00:30]} 4. Bf4 {[%emt 0:00:30]} b6 {[%emt 0:00:30]} 5. Nbd2 {[%emt 0:00:30]} Bb7 {[%emt 0:00:30]} 6. e3 {[%emt 0:00:30]} Be7 {[%emt 0:00:30]} 7. h3 {[%emt 0:00:30]} Ne4 {[%emt 0:00:30]} 8. Nxe4 {[%emt 0:00:30]} Bxe4 {[%emt 0:00:30]} 9. Nd2 {[%emt 0:00:30]} Bb7 {[%emt 0:00:30]} 10. Qg4 {[%emt 0:00:30]} g5 {[%emt 0:00:30]} 11. Be5 {[%emt 0:00:30]} h5 {[%emt 0:00:30]} 12. Qg3 {[%emt 0:00:30]} h4 {[%emt 0:00:30]} 13. Qh2 {[%emt 0:00:30]} f6 {[%emt 0:00:30]} 14. Bc7 {[%emt 0:00:30]} Qc8 {[%emt 0:00:30]} 15. Nc4 {[%emt 0:00:30]} d5 {[%emt 0:00:30]} 16. Nd6+ {[%emt 0:00:30]} Bxd6 {[%emt 0:00:30]} 17. Bxd6 {[%emt 0:00:30]} Kd7 {[%emt 0:00:30]} 18. a4 {[%emt 0:00:30]} c4 {[%emt 0:00:30]} 19. Be2 {[%emt 0:00:30]} Nc6 {[%emt 0:00:30]} 20. O-O {[%emt 0:00:30]} Ne7 {[%emt 0:00:30]} 21. Ba3 {[%emt 0:00:30]} Qb8 {[%emt 0:00:30]} 22. g4 {[%emt 0:00:30]} hxg3 {[%emt 0:00:30]} 23. fxg3 {[%emt 0:00:30]} Nf5 {[%emt 0:00:30]} 24. g4 {[%emt 0:00:30]} Qg3+ {[%emt 0:00:30]} 25. Qxg3 {[%emt 0:00:30]} Nxg3 {[%emt 0:00:30]} 26. Rxf6 {[%emt 0:00:30]} Rxh3 {[%emt 0:00:30]} 27. Rf7+ {[%emt 0:00:30]} Kc6 {[%emt 0:00:30]} 28. Bf3 {[%emt 0:00:30]} Rah8 {[%emt 0:00:30]} 29. Re1 {[%emt 0:00:30]} Ne4 {[%emt 0:00:30]} 30. Re2 {[%emt 0:00:30]} Rg3+ {[%emt 0:00:30]} 31. Rg2 {[%emt 0:00:30]} Rgh3 {[%emt 0:00:30]} 32. Bxe4 {[%emt 0:00:30]} dxe4 {[%emt 0:00:30]} 33. Kf2 {[%emt 0:00:30]} Rf3+ {[%emt 0:00:30]} 34. Rxf3 {[%emt 0:00:30]} exf3 {[%emt 0:00:30]} 35. Kxf3 {[%emt 0:00:30]} Kd7+ {[%emt 0:00:30]} 36. e4 {[%emt 0:00:30]} Rh3+ {[%emt 0:00:30]} 37. Ke2 {[%emt 0:00:30]} Bxe4 {[%emt 0:00:30]} 38. Rf2 {[%emt 0:00:30]} Rg3 {[%emt 0:00:30]} 39. Rf7+ {[%emt 0:00:30]} Kc6 {[%emt 0:00:30]} 40. Rxa7 {[%emt 0:00:30]} Rxg4 {[%emt 0:00:30]} 41. Be7 {[%emt 0:00:30]} Bd5 {[%emt 0:00:30]} 42. Bd8 {[%emt 0:00:30]} Rg2+ {[%emt 0:00:30]} 43. Kd1 {[%emt 0:00:30]} g4 {[%emt 0:00:30]} 44. Rc7+ {[%emt 0:00:30]} Kd6 {[%emt 0:00:30]} 45. Kc1 {[%emt 0:00:30]} Rg1+ {[%emt 0:00:30]} 46. Kc2 {[%emt 0:00:30]} g3 {[%emt 0:00:30]} 47. Rg7 {[%emt 0:00:30]} g2 {[%emt 0:00:30]} 48. Bc7+ {[%emt 0:00:30]} Kc6 {[%emt 0:00:30]} 49. Bh2 {[%emt 0:00:30]} Be4+ {[%emt 0:00:30]} 50. Kd2 {[%emt 0:00:30]} Rh1 {[%emt 0:00:30]} 51. Rc7+ {[%emt 0:00:30]} Kd5 {[%emt 0:00:30]} 52. Rd7+ {[%emt 0:00:30]} 1/2-1/2

[Event "Fall IM Norm Invitational 2020"]
[Site "Charlotte"]
[Date "2020.10.01"]
[Round "2.2"]
[White "Li, Eric"]
[Black "Adamson, Robby"]
[Result "1/2-1/2"]
[ECO "E27"]
[WhiteElo "2334"]
[BlackElo "2235"]
[Annotator "ChessBase"]
[PlyCount "94"]
[EventDate "2020.09.30"]
[EventType "tourn"]
[EventCountry "USA"]
[SourceTitle "playchess.com"]
[Source "ChessBase"]
[SourceQuality "1"]
[TimeControl "5400+30"]

1. d4 {[%emt 1:30:30]} Nf6 {[%emt 1:30:30]} 2. c4 {[%emt 0:00:30]} e6 {[%emt 0:00:30]} 3. Nc3 {[%emt 0:00:30]} Bb4 {[%emt 0:00:30]} 4. f3 {[%emt 0:00:30]} O-O {[%emt 0:00:30]} 5. a3 {[%emt 0:00:30]} Bxc3+ {[%emt 0:00:30]} 6. bxc3 {[%emt 0:00:30]} Ne8 {[%emt 0:00:30]} 7. e4 {[%emt 0:00:30]} b6 {[%emt 0:00:30]} 8. Bd3 {[%emt 0:00:30]} Ba6 {[%emt 0:00:30]} 9. Nh3 {[%emt 0:00:30]} Nc6 {[%emt 0:00:30]} 10. e5 {[%emt 0:00:30]} Qh4+ {[%emt 0:00:30]} 11. Kf1 {[%emt 0:00:30]} f6 {[%emt 0:00:30]} 12. exf6 {[%emt 0:00:30]} Nxf6 {[%emt 0:00:30]} 13. Bf4 {[%emt 0:00:30]} d6 {[%emt 0:00:30]} 14. Bg3 {[%emt 0:00:30]} Qh6 {[%emt 0:00:30]} 15. Kg1 {[%emt 0:00:30]} Rae8 {[%emt 0:00:30]} 16. Nf2 {[%emt 0:00:30]} Qh5 {[%emt 0:00:30]} 17. Qa4 {[%emt 0:00:30]} Na5 {[%emt 0:00:30]} 18. Re1 {[%emt 0:00:30]} Qg5 {[%emt 0:00:30]} 19. Rd1 {[%emt 0:00:30]} Qe3 {[%emt 0:00:30]} 20. h4 {[%emt 0:00:30]} Nh5 {[%emt 0:00:30]} 21. Rh3 {[%emt 0:00:30]} Nf4 {[%emt 0:00:30]} 22. Bxf4 {[%emt 0:00:30]} Qxf4 {[%emt 0:00:30]} 23. c5 {[%emt 0:00:30]} Bxd3 {[%emt 0:00:30]} 24. Nxd3 {[%emt 0:00:30]} Qe3+ {[%emt 0:00:30]} 25. Kh1 {[%emt 0:00:30]} dxc5 {[%emt 0:00:30]} 26. dxc5 {[%emt 0:00:30]} Rd8 {[%emt 0:00:30]} 27. f4 {[%emt 0:00:30]} Qe2 {[%emt 0:00:30]} 28. Re1 {[%emt 0:00:30]} Qd2 {[%emt 0:00:30]} 29. Qe4 {[%emt 0:00:30]} Kh8 {[%emt 0:00:30]} 30. h5 {[%emt 0:00:30]} Qxc3 {[%emt 0:00:30]} 31. Ne5 {[%emt 0:00:30]} Qxc5 {[%emt 0:00:30]} 32. Ng6+ {[%emt 0:00:30]} Kg8 {[%emt 0:00:30]} 33. Qxe6+ {[%emt 0:00:30]} Rf7 34. Ne5 {[%emt 0:00:30]} Qd5 {[%emt 0:01:00]} 35. Nxf7 {[%emt 0:00:30]} Qxe6 {[%emt 0:00:30]} 36. Rxe6 {[%emt 0:00:30]} Kxf7 {[%emt 0:00:30]} 37. Rhe3 {[%emt 0:00:30]} Rd7 38. f5 {[%emt 0:00:30]} c5 {[%emt 0:01:00]} 39. g4 {[%emt 0:00:30]} h6 {[%emt 0:00:30]} 40. R6e4 {[%emt 0:00:30]} Nc6 {[%emt 0:00:30]} 41. Kg2 {[%emt 0:00:30]} b5 {[%emt 0:00:30]} 42. Re8 {[%emt 0:00:30]} Rc7 {[%emt 0:00:30]} 43. Rh8 {[%emt 0:00:30]} c4 {[%emt 0:00:30]} 44. Ree8 {[%emt 0:00:30]} Kf6 {[%emt 0:00:30]} 45. Kg3 {[%emt 0:00:30]} Ne7 {[%emt 0:00:30]} 46. Kf4 {[%emt 0:00:30]} Nd5+ {[%emt 0:00:30]} 47. Ke4 {[%emt 0:00:30]} c3 {[%emt 0:00:30]} 1/2-1/2